bitfinex-derivatives/quotes_ETHF0:USTF0_20250629
["timestamp","ask_amount","ask_price","bid_price","bid_amount"]
[1751227290859,1.35263,2438.7,2438.6,1.0]
[1751227293561,3.86371,2438.8,2438.6,1.0]
[1751227293767,6.9502,2439.0,2438.7,2.7655207]
[1751227293969,7.60605,2439.0,2438.9,2.1095907]
[1751227295973,0.65588,2438.9,2438.8,3.68441446]
[1751227297769,0.65588,2438.9,2438.8,5.13581446]
[1751227298169,0.65588,2438.9,2438.8,5.84711446]
[1751227299170,0.65588,2438.9,2438.8,6.50301446]
[1751227299972,0.65586,2439.0,2438.8,6.50301446]
[1751227300172,0.65588,2438.9,2438.8,6.50301446]
[1751227300670,0.65587,2439.0,2438.8,6.50301446]
[1751227303273,0.65587,2439.0,2438.9,0.65588]
[1751227304076,3.86364,2439.1,2438.9,0.65588]
[1751227304378,3.2078,2439.1,2439.0,3.66816446]
[1751227308787,3.2078,2439.4,2439.3,0.65577]
[1751227309086,3.2078,2439.4,2439.3,3.66808446]
[1751227309389,8.2688,2439.6,2439.4,0.65574]
[1751227309676,4.5416,2439.7,2439.6,0.65569]
[1751227309677,3.2078,2439.7,2439.6,0.65569]
[1751227310175,3.2078,2439.7,2439.6,1.32129]
[1751227310372,3.2078,2439.7,2439.6,2.71559]
[1751227312981,0.7285,2439.9,2439.6,2.71559]
[1751227312982,0.7285,2439.9,2439.8,0.65563]
[1751227313182,0.7285,2439.9,2439.8,3.66794446]
[1751227313385,1.38411,2439.9,2439.8,3.01231446]
[1751227314084,0.7285,2439.9,2439.8,3.66794446]
[1751227314383,1.38411,2439.9,2439.8,3.66794446]
[1751227314684,1.38411,2439.9,2439.8,3.01231446]
[1751227316285,0.7285,2439.9,2439.8,3.01231446]
[1751227317884,1.38411,2439.9,2439.8,3.01231446]
[1751227318083,0.7285,2439.9,2439.8,3.01231446]
[1751227318283,1.38411,2439.9,2439.8,3.01231446]
[1751227318484,1.38411,2439.9,2439.7,0.65564]
[1751227318685,0.7285,2439.9,2439.7,0.65564]
[1751227318885,0.7285,2439.9,2439.8,0.65563]
[1751227319986,0.7285,2439.9,2439.7,0.65564]
[1751227320283,0.7285,2439.9,2439.6,5.07221446]
[1751227320284,0.7285,2439.9,2439.8,0.65563]
[1751227320486,1.38411,2439.9,2439.7,0.65565]
[1751227321186,0.7285,2439.9,2439.7,0.65565]
[1751227321487,0.7285,2439.9,2439.8,0.65563]
[1751227321887,1.38411,2439.9,2439.7,0.65564]
[1751227322987,0.7285,2439.9,2439.3,3.2078]
[1751227323189,0.65565,2439.8,2439.6,0.65567]
[1751227323388,2.71033,2439.9,2439.6,0.65567]
[1751227323688,1.3262,2439.8,2439.6,0.65567]
[1751227323889,1.3262,2439.8,2439.7,0.65566]
[1751227324082,1.3262,2439.8,2439.6,0.65566]
[1751227324384,1.3262,2439.8,2439.5,3.01231446]
[1751227324581,1.3262,2439.8,2439.7,0.65566]
[1751227325485,0.7285,2439.9,2439.8,0.65563]
[1751227327189,1.38411,2439.9,2439.8,0.65563]
[1751227327390,0.7285,2439.9,2439.8,0.65563]
[1751227332095,1.38411,2439.9,2439.8,0.65563]
[1751227332399,0.7285,2439.9,2439.8,0.65563]
[1751227332997,1.38412,2439.9,2439.7,3.66795446]
[1751227333296,2.0951,2439.9,2439.7,3.01231446]
[1751227333494,2.0951,2439.9,2439.8,0.65563]
[1751227333795,2.75071,2439.9,2439.7,3.66796446]
[1751227333996,2.0951,2439.9,2439.8,0.65563]
[1751227335491,0.7285,2439.9,2439.8,0.65563]
[1751227355709,0.7285,2439.9,2439.6,1.22532174]
[1751227355910,2.1409,2439.9,2439.7,0.65566]
[1751227356111,2.79652,2439.9,2439.7,0.65566]
[1751227356712,2.79652,2439.9,2439.7,1.88098174]
[1751227358717,0.65563,2439.8,2439.7,1.22532174]
[1751227358916,0.65563,2439.8,2439.6,1.88100174]
[1751227359418,0.65563,2439.8,2439.5,4.64607678]
[1751227359419,0.65569,2439.6,2439.5,1.22532174]
[1751227359717,0.65567,2439.7,2439.5,1.22532174]
[1751227360212,0.7307,2439.6,2439.5,3.66803446]
[1751227360720,0.7307,2439.6,2439.5,5.30179678]
[1751227361019,0.6802,2439.7,2439.6,0.65569]
[1751227361219,1.32964,2439.8,2439.6,1.8814208]
[1751227361421,1.32964,2439.8,2439.7,1.2257308]
[1751227363519,0.65566,2439.7,2439.6,1.2257308]
[1751227370417,3.86346,2439.7,2439.6,1.2257308]
[1751227371318,0.65569,2439.6,2439.5,1.2257308]
[1751227371518,1.31869,2439.6,2439.5,1.2257308]
[1751227373325,0.65572,2439.5,2439.4,1.2257308]
[1751227373525,1.37602,2439.5,2439.4,1.2257308]
[1751227373924,2.84122,2439.5,2439.4,1.2257308]
[1751227375925,0.65574,2439.4,2439.3,1.2257308]
[1751227380432,0.65574,2439.4,2439.3,4.23804526]
[1751227384028,0.65574,2439.4,2439.3,5.11781446]
[1751227384224,6.9919,2439.7,2439.3,5.11781446]
[1751227384428,0.6557,2439.6,2439.5,3.01231446]
[1751227384625,0.6557,2439.6,2439.5,4.43951446]
[1751227389132,0.6557,2439.6,2439.5,1.4272]
[1751227389327,0.6557,2439.6,2439.5,4.43951446]
[1751227390928,0.6557,2439.6,2439.5,3.01231446]
[1751227391227,0.65572,2439.5,2439.4,1.22481313]
[1751227391828,0.65574,2439.4,2439.3,1.22481313]
[1751227398447,0.65577,2439.3,2439.2,1.22481313]
[1751227402449,0.65577,2439.3,2439.2,3.41751313]
[1751227402656,0.65577,2439.3,2439.2,3.82646232]
[1751227402856,0.65577,2439.3,2439.2,3.41866211]
[1751227403555,0.65577,2439.3,2439.2,1.95436211]
[1751227409962,0.65577,2439.3,2439.2,1.22596211]
[1751227413165,0.6558,2439.2,2439.1,4.23827657]
[1751227413365,1.3241,2439.2,2439.1,4.23827657]
[1751227414266,4.5319,2439.2,2439.1,3.01231446]
[1751227415764,4.5319,2439.2,2439.1,4.23827657]
[1751227415964,4.5319,2439.2,2439.1,4.93627657]
[1751227416665,3.8636,2439.2,2439.1,4.93627657]
[1751227416865,3.8636,2439.2,2439.1,6.37057657]
[1751227419070,0.6558,2439.2,2439.1,6.37057657]
[1751227422572,0.6558,2439.2,2439.1,4.93627657]
[1751227425872,0.6558,2439.2,2439.1,4.23827657]
[1751227427776,0.6558,2439.2,2439.1,3.33439665]
[1751227434274,0.6558,2439.2,2439.1,1.22596211]
[1751227434474,1.3829,2439.2,2439.1,1.22596211]
[1751227435769,0.65582,2439.1,2439.0,1.22596211]
[1751227435974,1.34502,2439.1,2439.0,1.22596211]
[1751227442479,0.65585,2439.0,2438.9,3.33439665]
[1751227444183,0.65585,2439.0,2438.9,2.10843454]
[1751227444583,0.65585,2439.0,2438.9,3.56903454]
[1751227446184,0.65585,2439.0,2438.9,5.20279686]
[1751227446383,0.65585,2439.0,2438.9,5.86829686]
[1751227452291,0.65585,2439.0,2438.9,3.75986232]
[1751227452589,0.65585,2439.0,2438.9,28.41586232]
[1751227454386,0.65585,2439.0,2438.9,3.75986232]
[1751227454687,0.65588,2438.9,2438.8,1.63376232]
[1751227454889,0.65588,2438.9,2438.8,28.39819686]
[1751227458196,0.65588,2438.9,2438.8,3.74219686]
[1751227458494,0.65588,2438.9,2438.8,28.39919686]
[1751227459396,0.65588,2438.9,2438.7,3.2078]
[1751227459397,0.6559,2438.8,2438.7,3.2078]
[1751227459595,0.6781,2438.8,2438.7,4.43484162]
[1751227459787,6.255,2439.1,2438.7,6.94999686]
[1751227459993,6.91082,2439.1,2439.0,2.10843454]
[1751227461798,0.65585,2439.0,2438.9,4.23903928]
[1751227464301,0.65585,2439.0,2438.9,3.01220125]
[1751227465499,0.65588,2438.9,2438.8,1.22683803]
[1751227465702,1.36248,2438.9,2438.8,1.22683803]
[1751227474513,0.6559,2438.8,2438.7,4.43463803]
[1751227475113,0.6559,2438.8,2438.7,1.22683803]
[1751227476212,0.65593,2438.7,2438.6,29.90103928]
[1751227476413,0.65593,2438.7,2438.6,2.22683803]
[1751227482023,0.65593,2438.7,2438.6,1.0]
[1751227484825,18.13493125,2438.7,2438.6,0.33747]
[1751227485015,17.47900125,2438.7,2438.1,1.22683803]
[1751227485222,0.65606,2438.2,2438.1,1.22683803]
[1751227485721,6.259,2438.4,2438.0,4.84156232]
[1751227485722,0.65609,2438.1,2438.0,3.2078]
[1751227485924,1.33389,2438.1,2438.0,3.2078]
[1751227488129,0.65615,2437.9,2437.8,0.17193928]
[1751227488332,0.65615,2437.9,2437.8,4.64714053]
[1751227490727,0.65615,2437.9,2437.8,4.47520125]
[1751227493330,0.65615,2437.9,2437.8,5.16360125]
[1751227494638,0.65615,2437.9,2437.8,3.01220125]
[1751227496937,0.65617,2437.8,2437.7,0.6877]
[1751227498338,0.6562,2437.7,2437.6,4.46930125]
[1751227498538,0.6562,2437.7,2437.6,29.14730125]
[1751227498937,0.6562,2437.7,2437.6,29.14630125]
[1751227499233,0.6562,2437.7,2437.6,4.46930125]
[1751227502141,0.6562,2437.7,2437.6,29.15030125]
[1751227502839,0.6562,2437.7,2437.6,4.46930125]
[1751227503338,0.65623,2437.6,2437.5,0.6884]
[1751227503538,0.65625,2437.5,2437.4,0.6628]
[1751227503843,0.65628,2437.4,2437.3,3.2078]
[1751227504043,0.65628,2437.4,2437.3,5.31924358]
[1751227504540,0.6879,2437.5,2437.3,3.2078]
[1751227504740,0.65628,2437.4,2437.3,6.77064358]
[1751227504937,1.34417,2437.5,2437.3,7.42695358]
[1751227505748,1.34417,2437.5,2437.4,3.01580161]
[1751227506838,6.266,2437.7,2437.4,3.67208161]
[1751227507052,0.65625,2437.5,2437.4,4.46720161]
[1751227507941,6.9345,2437.7,2437.4,4.46720161]
[1751227508243,0.65624,2437.6,2437.4,5.12348161]
[1751227510042,0.65625,2437.5,2437.4,5.12348161]
[1751227510240,0.65624,2437.6,2437.4,5.12348161]
[1751227511744,0.65625,2437.5,2437.4,5.12348161]
[1751227512244,0.65625,2437.5,2437.4,4.46720161]
[1751227514045,0.65625,2437.5,2437.4,3.01580161]
[1751227518645,0.65628,2437.4,2437.3,1.63376232]
[1751227518852,1.32178,2437.4,2437.3,1.63376232]
[1751227519150,0.6655,2437.4,2437.3,1.63376232]
[1751227519352,0.65628,2437.4,2437.3,1.63376232]
[1751227519952,0.65628,2437.4,2437.3,3.10116232]
[1751227521953,0.65628,2437.4,2437.3,1.4674]
[1751227524163,0.65628,2437.4,2437.3,2.12371]
[1751227524662,0.65628,2437.4,2437.3,1.4674]
[1751227525163,0.65628,2437.4,2437.3,3.10116232]
[1751227525864,0.65628,2437.4,2437.3,3.57852016]
[1751227526165,0.65628,2437.4,2437.3,5.21228248]
[1751227527765,0.65628,2437.4,2437.3,5.86859248]
[1751227527965,0.65628,2437.4,2437.3,5.21228248]
[1751227529167,0.65628,2437.4,2437.3,3.74488248]
[1751227530567,0.65628,2437.4,2437.3,4.40119248]
[1751227531966,0.65628,2437.4,2437.3,3.74488248]
[1751227533967,3.2078,2437.5,2437.4,0.65628]
[1751227534167,3.2078,2437.5,2437.4,3.61184232]
[1751227535468,3.9333,2437.8,2437.4,27.64256232]
[1751227535673,3.86398,2437.8,2437.7,2.11112016]
[1751227535873,3.86398,2437.8,2437.6,24.687]
[1751227535874,0.6562,2437.7,2437.6,24.687]
[1751227536169,0.6562,2437.7,2437.6,27.70165762]
[1751227536767,0.6562,2437.7,2437.6,28.35788762]
[1751227536970,3.86399,2437.8,2437.6,28.35788762]
[1751227537270,0.6562,2437.7,2437.6,27.70165762]
[1751227537466,0.6562,2437.7,2437.6,28.35788762]
[1751227537668,3.86399,2437.8,2437.6,28.35788762]
[1751227538070,0.65619,2437.8,2437.6,28.35788762]
[1751227546273,4.52467,2437.9,2437.7,0.6562]
[1751227546478,4.52467,2437.9,2437.8,3.01465762]
[1751227548878,1.31687,2437.9,2437.8,3.01465762]
[1751227549175,4.52467,2437.9,2437.8,3.01465762]
[1751227551879,1.31687,2437.9,2437.8,3.01465762]
[1751227552278,4.52467,2437.9,2437.8,3.01465762]
[1751227555781,4.52465,2437.9,2437.8,2.1105867]
[1751227560983,4.52465,2437.9,2437.8,2.7667567]
[1751227561179,3.8685,2437.9,2437.8,2.7667567]
[1751227561383,4.52465,2437.9,2437.8,2.7667567]
[1751227562386,4.52465,2437.9,2437.8,3.99500946]
[1751227562889,3.2078,2437.9,2437.8,3.99500946]
[1751227563387,1.381,2438.1,2437.9,0.65613]
[1751227563584,1.381,2438.1,2438.0,3.33883644]
[1751227564690,1.381,2438.1,2438.0,2.1105867]
[1751227571891,2.7135,2438.1,2438.0,2.1105867]
[1751227572290,0.65612,2438.0,2437.9,3.33883644]
[1751227572987,0.65612,2438.0,2437.9,1.22824974]
[1751227573191,0.65615,2437.9,2437.8,1.22824974]
[1751227573492,0.65617,2437.8,2437.7,1.22824974]
[1751227573790,1.32717,2437.8,2437.7,1.22824974]
[1751227578695,0.65623,2437.6,2437.5,1.22824974]
[1751227578896,0.65625,2437.5,2437.4,1.22824974]
[1751227579097,1.32645,2437.5,2437.4,1.22824974]
[1751227579889,0.65628,2437.4,2437.3,1.22824974]
[1751227580095,0.65631,2437.3,2437.2,1.22824974]
[1751227580596,0.65633,2437.2,2437.1,1.22824974]
[1751227580794,1.36683,2437.2,2437.1,1.22824974]
[1751227580996,1.36683,2437.2,2437.1,4.24382462]
[1751227581798,4.57463,2437.2,2437.1,4.24382462]
[1751227581999,4.57463,2437.2,2437.1,1.22824974]
[1751227582200,0.65636,2437.1,2437.0,1.22824974]
[1751227583305,4.57465,2437.2,2437.0,1.88463974]
[1751227583503,4.57465,2437.2,2437.1,3.01557488]
[1751227586107,1.36685,2437.2,2437.1,3.01557488]
[1751227586300,0.65636,2437.1,2437.0,1.22824974]
[1751227586500,0.65639,2437.0,2436.9,1.22824974]
[1751227586700,2.70659,2437.0,2436.9,1.22824974]
[1751227586901,0.65641,2436.9,2436.8,1.22824974]
[1751227587104,0.65644,2436.8,2436.7,1.22824974]
[1751227587307,0.65647,2436.7,2436.5,6.22363462]
[1751227587605,0.65646,2436.8,2436.6,0.6565]
[1751227587810,0.65647,2436.7,2436.5,3.20805974]
[1751227588503,0.65646,2436.8,2436.6,0.6565]
[1751227589005,0.65646,2436.8,2436.7,3.01557488]
[1751227589205,3.8857,2436.9,2436.7,3.01557488]
[1751227589404,0.65644,2436.8,2436.7,3.01557488]
[1751227591605,4.54213,2436.9,2436.7,3.67204488]
[1751227592407,0.65644,2436.8,2436.7,3.67204488]
[1751227592605,4.54213,2436.9,2436.7,3.67204488]
[1751227592902,3.8857,2436.9,2436.8,0.65644]
[1751227593508,4.54211,2436.9,2436.8,0.65644]
[1751227595008,3.8857,2436.9,2436.8,0.65644]
[1751227595209,4.54211,2436.9,2436.8,0.65644]
[1751227595409,4.54211,2436.9,2436.7,3.01557488]
[1751227595410,4.54211,2436.9,2436.7,3.67202488]
[1751227595610,3.8857,2436.9,2436.8,0.65644]
[1751227596006,3.2078,2436.9,2436.8,0.65644]
[1751227596212,6.271,2437.1,2437.0,0.65639]
[1751227596408,6.271,2437.1,2437.0,3.67196488]
[1751227598414,0.7298,2437.2,2437.1,0.65636]
[1751227598715,1.38613,2437.2,2437.1,0.65636]
[1751227599213,1.38613,2437.2,2437.0,3.67195488]
[1751227600013,0.65636,2437.1,2437.0,3.01557488]
[1751227600211,1.38614,2437.2,2437.0,3.67196488]
[1751227602016,0.65636,2437.1,2437.0,3.67196488]
[1751227603615,0.65636,2437.1,2437.0,3.01557488]
[1751227604515,0.65643,2436.9,2436.8,3.01557488]
[1751227605114,1.34453,2436.9,2436.8,3.01557488]
[1751227606016,0.65647,2436.7,2436.6,2.60584974]
[1751227606210,0.65646,2436.8,2436.6,4.39317488]
[1751227606412,0.65646,2436.8,2436.7,1.22707665]
[1751227609416,0.65646,2436.8,2436.6,6.03138775]
[1751227611820,0.65646,2436.8,2436.7,0.65647]
[1751227612121,1.34453,2436.9,2436.7,0.65647]
[1751227612316,1.34453,2436.9,2436.8,1.22898134]
[1751227613521,1.34453,2436.9,2436.8,4.24455622]
[1751227615223,4.55233,2436.9,2436.8,4.24455622]
[1751227615923,4.55233,2436.9,2436.8,4.90099622]
[1751227616224,4.55233,2436.9,2436.8,3.67201488]
[1751227616624,4.55233,2436.9,2436.8,3.01557488]
[1751227618429,4.55233,2436.9,2436.8,3.67201488]
[1751227619428,4.55233,2436.9,2436.8,3.01557488]
[1751227622333,4.55233,2436.9,2436.8,4.65379775]
[1751227622732,4.55231,2436.9,2436.8,5.31023775]
[1751227624434,4.55231,2436.9,2436.8,4.65379775]
[1751227625236,4.55231,2436.9,2436.8,5.31023775]
[1751227625540,3.8959,2436.9,2436.8,5.31023775]
[1751227625735,3.8959,2436.9,2436.8,4.40662265]
[1751227625942,3.8959,2436.9,2436.8,3.75018265]
[1751227626143,4.55231,2436.9,2436.8,4.40662265]
[1751227626339,4.55231,2436.9,2436.8,3.75018265]
[1751227626641,3.86421,2436.9,2436.8,4.40662265]
[1751227626936,3.86421,2436.9,2436.8,5.79972265]
[1751227626937,3.2078,2436.9,2436.8,5.79972265]
[1751227627137,3.2078,2436.9,2436.8,6.46422265]
[1751227630943,0.65641,2437.0,2436.8,6.46422265]
[1751227631142,0.65641,2437.0,2436.9,1.23032471]
[1751227631343,3.86421,2437.0,2436.9,1.23032471]
[1751227632244,0.65641,2436.9,2436.8,4.40662265]
[1751227632544,0.65641,2436.9,2436.8,3.75018265]
[1751227632744,1.33171,2436.9,2436.8,3.75018265]
[1751227634441,4.53951,2436.9,2436.8,3.75018265]
[1751227634845,3.8831,2436.9,2436.8,4.40662265]
[1751227635145,4.53951,2436.9,2436.8,4.40662265]
[1751227636942,3.8831,2436.9,2436.8,4.40662265]
[1751227637547,4.53951,2436.9,2436.8,4.40662265]
[1751227638347,3.8831,2436.9,2436.8,4.40662265]
[1751227639747,3.8831,2436.9,2436.8,2.76839978]
[1751227641548,0.6753,2436.9,2436.8,2.76839978]
[1751227649155,3.2078,2437.2,2437.1,0.65636]
[1751227649355,3.2078,2437.2,2437.1,3.99847277]
[1751227649951,3.2078,2437.2,2437.1,4.40852377]
[1751227655356,3.2078,2437.2,2437.1,2.76831978]
[1751227656159,3.2078,2437.2,2437.1,4.18981978]
[1751227658456,3.2078,2437.2,2437.1,2.76831978]
[1751227659458,3.2078,2437.2,2437.1,2.11195978]
[1751227659758,3.2078,2437.2,2437.1,2.76831978]
[1751227661258,1.34472,2437.3,2437.1,2.76831978]
[1751227661557,0.6884,2437.3,2437.2,1.88470366]
[1751227661757,0.6884,2437.3,2437.2,1.22837366]
[1751227661958,1.34471,2437.3,2437.2,1.22837366]
[1751227662153,0.6884,2437.3,2437.2,1.22837366]
[1751227662859,0.6884,2437.3,2437.2,1.88470366]
[1751227663158,1.34471,2437.3,2437.2,1.22837366]
[1751227675265,0.65633,2437.2,2437.1,3.75216377]
[1751227677967,0.65633,2437.2,2437.1,4.40852377]
[1751227678364,0.65633,2437.2,2437.1,2.11195978]
[1751227679267,0.65633,2437.2,2437.1,4.56260327]
[1751227680568,0.65633,2437.2,2437.1,5.21896327]
[1751227680769,0.65633,2437.2,2437.1,4.56260327]
[1751227681570,0.65633,2437.2,2437.1,5.21896327]
[1751227681969,0.65633,2437.2,2437.1,4.56260327]
[1751227682768,0.65633,2437.2,2437.1,2.11195978]
[1751227683371,0.65633,2437.2,2437.1,3.75225267]
[1751227684077,3.86413,2437.2,2437.1,3.75225267]
[1751227686075,3.86413,2437.2,2437.1,2.11195978]
[1751227689083,0.65633,2437.2,2437.1,2.11195978]
[1751227689484,0.65633,2437.2,2437.1,4.56260327]
[1751227690687,1.34472,2437.3,2437.1,5.21895327]
[1751227690882,1.34472,2437.3,2437.2,1.64020818]
[1751227700385,3.2078,2437.4,2437.3,0.65631]
[1751227700593,6.35443408,2437.7,2437.2,3.01420818]
[1751227700792,7.01063408,2437.7,2437.6,2.11195978]
[1751227701190,7.01063408,2437.7,2437.6,2.76818978]
[1751227701391,4.552,2437.7,2437.6,2.76818978]
[1751227701590,3.8958,2437.7,2437.6,2.76818978]
[1751227703493,4.552,2437.7,2437.6,2.11195978]
[1751227703897,0.65625,2437.5,2437.4,1.2301446]
[1751227704091,0.65625,2437.5,2437.4,3.34210438]
[1751227705495,0.65625,2437.5,2437.4,1.2301446]
[1751227705695,2.03265,2437.5,2437.4,1.2301446]
[1751227706695,0.65628,2437.4,2437.3,3.34210438]
[1751227706894,1.36538,2437.4,2437.3,3.34210438]
[1751227708493,1.36538,2437.4,2437.3,3.75216796]
[1751227708690,1.36538,2437.4,2437.3,3.34164305]
[1751227709197,0.65631,2437.3,2437.2,2.11195978]
[1751227713803,0.65631,2437.3,2437.2,3.75136313]
[1751227718207,3.86411,2437.3,2437.2,3.75136313]
[1751227719704,0.65631,2437.3,2437.2,3.75136313]
[1751227719907,3.86411,2437.3,2437.2,3.75136313]
[1751227720306,3.86411,2437.3,2437.2,4.40769313]
[1751227720507,3.2078,2437.3,2437.2,4.40769313]
[1751227721213,3.86411,2437.3,2437.2,4.40769313]
[1751227721615,3.2078,2437.3,2437.2,4.40769313]
[1751227724218,3.2078,2437.3,2437.2,5.21893327]
[1751227724516,0.65627,2437.5,2437.3,0.65631]
[1751227724817,9.4698,2437.6,2437.5,0.65625]
[1751227725012,9.4698,2437.6,2437.5,1.88567275]
[1751227726515,9.4698,2437.6,2437.5,3.22067275]
[1751227726817,3.2078,2437.6,2437.5,3.22067275]
[1751227731616,3.2078,2437.6,2437.5,1.88567275]
[1751227732122,3.2078,2437.6,2437.5,3.99257275]
[1751227733526,3.2078,2437.6,2437.5,4.40246377]
[1751227734020,0.65618,2437.8,2437.6,0.65621]
[1751227734220,3.86398,2437.8,2437.7,3.3405181]
[1751227735423,3.86398,2437.8,2437.7,2.11195978]
[1751227736020,0.65618,2437.8,2437.7,2.11195978]
[1751227736221,3.86398,2437.8,2437.7,2.11195978]
[1751227737125,3.86398,2437.8,2437.7,2.76815978]
[1751227738027,3.86398,2437.8,2437.7,0.6562]
[1751227738327,3.86398,2437.8,2437.7,2.76815978]
[1751227739430,3.86398,2437.8,2437.7,2.11195978]
[1751227740728,3.86398,2437.8,2437.7,2.76815978]
[1751227741528,3.2078,2437.8,2437.7,2.76815978]
[1751227741728,3.86397,2437.8,2437.7,2.76815978]
[1751227743344,3.2078,2437.8,2437.7,2.76815978]
[1751227744945,3.2078,2437.8,2437.7,3.9967181]
[1751227745644,1.37226,2437.9,2437.7,3.9967181]
[1751227745844,3.2078,2437.8,2437.7,3.9967181]
[1751227746844,3.2078,2437.8,2437.7,2.76815978]
[1751227747044,3.2078,2437.8,2437.7,4.17195978]
[1751227747244,0.7161,2437.9,2437.8,0.65617]
[1751227747547,0.7161,2437.9,2437.8,1.8831845]
[1751227748246,1.37225,2437.9,2437.8,1.8831845]
[1751227748750,0.7161,2437.9,2437.8,1.8831845]
[1751227754849,1.37225,2437.9,2437.8,1.2270145]
[1751227756356,1.37225,2437.9,2437.8,1.8831845]
[1751227756556,1.37225,2437.9,2437.8,1.2270145]
[1751227758156,1.37225,2437.9,2437.8,1.8831845]
[1751227760345,1.37225,2437.9,2437.8,0.65617]
[1751227761653,1.37225,2437.9,2437.7,4.40745355]
[1751227762155,0.65617,2437.8,2437.7,1.63931377]
[1751227762350,0.6562,2437.7,2437.6,1.22905367]
[1751227762551,0.65623,2437.6,2437.5,1.22905367]
[1751227762751,4.15928978,2437.6,2437.5,1.22905367]
[1751227763053,0.65625,2437.5,2437.4,0.53851377]
[1751227763348,2.76335,2437.5,2437.4,0.53851377]
[1751227764951,0.65633,2437.2,2437.1,4.56260327]
[1751227765255,0.65633,2437.2,2437.1,2.11195978]
[1751227765758,0.65633,2437.2,2437.1,3.01682292]
[1751227769360,3.86412,2437.3,2437.1,3.67318292]
[1751227769562,3.86412,2437.3,2437.2,1.22766807]
[1751227769858,3.2078,2437.3,2437.2,1.88399807]
[1751227771959,2.81669,2437.4,2437.2,1.88399807]
[1751227772160,3.2078,2437.3,2437.2,1.88399807]
[1751227774059,2.81669,2437.4,2437.2,1.88399807]
[1751227774267,3.2078,2437.3,2437.2,1.88399807]
[1751227775961,3.86411,2437.3,2437.1,1.88402807]
[1751227776258,3.86411,2437.3,2437.1,4.90085099]
[1751227779961,0.65633,2437.2,2437.1,4.90085099]
[1751227780163,0.65633,2437.2,2437.1,4.24449099]
[1751227781365,0.65633,2437.2,2437.1,4.90085099]
[1751227783463,0.65633,2437.2,2437.1,4.90011055]
[1751227786260,0.65633,2437.2,2437.1,4.24375055]
[1751227787761,0.65633,2437.2,2437.1,3.33868715]
[1751227789272,0.65633,2437.2,2437.1,2.11175952]
[1751227791168,3.86413,2437.2,2437.1,2.76811952]
[1751227791471,3.86413,2437.2,2437.1,2.80215952]
[1751227791965,3.86413,2437.2,2437.1,3.45851952]
[1751227792165,3.86413,2437.2,2437.1,5.90916301]
[1751227792664,3.2078,2437.2,2437.1,5.90916301]
[1751227793369,3.86413,2437.3,2437.1,5.90916301]
[1751227793564,3.86413,2437.3,2437.2,1.63994139]
[1751227796974,3.86413,2437.3,2437.2,2.29627139]
[1751227799577,3.86413,2437.3,2437.2,1.63994139]
[1751227803779,0.65633,2437.3,2437.2,1.63994139]
[1751227804079,3.86413,2437.3,2437.2,1.63994139]
[1751227806780,0.65633,2437.3,2437.2,1.63994139]
[1751227806979,3.86413,2437.3,2437.2,1.63994139]
[1751227809080,0.65633,2437.3,2437.2,1.63994139]
[1751227809280,3.86413,2437.3,2437.2,1.63994139]
[1751227814782,0.65633,2437.3,2437.2,1.63994139]
[1751227814982,3.86413,2437.3,2437.2,1.63994139]
[1751227824185,0.65633,2437.3,2437.2,1.63994139]
[1751227824485,3.86413,2437.3,2437.2,1.63994139]
[1751227827887,0.65633,2437.3,2437.2,1.63994139]
[1751227828188,3.86413,2437.3,2437.2,1.63994139]
[1751227831287,3.2078,2437.3,2437.2,2.29627139]
[1751227832090,3.86411,2437.3,2437.2,2.29627139]
[1751227832292,3.86411,2437.3,2437.2,1.63994139]
[1751227833389,3.86411,2437.3,2437.2,2.29627139]
[1751227835491,3.86411,2437.3,2437.2,1.63994139]
[1751227837293,3.86411,2437.3,2437.2,2.29627139]
[1751227837892,3.86411,2437.3,2437.2,1.63994139]
[1751227839693,3.86411,2437.3,2437.2,2.29627139]
[1751227843094,0.65631,2437.3,2437.2,2.29627139]
[1751227843299,3.86411,2437.3,2437.2,2.29627139]
[1751227843995,3.86411,2437.3,2437.2,26.97727139]
[1751227844600,3.86411,2437.3,2437.2,26.32094139]
[1751227851596,3.86411,2437.3,2437.2,26.97727139]
[1751227853001,3.86411,2437.3,2437.2,26.32094139]
[1751227855096,3.86411,2437.3,2437.2,28.43270091]
[1751227857302,3.86411,2437.3,2437.2,26.79275952]
[1751227861910,3.86411,2437.3,2437.2,28.4339458]
[1751227863610,3.86411,2437.3,2437.2,3.7529458]
[1751227863811,3.86411,2437.3,2437.2,28.4329458]
[1751227870715,3.86411,2437.3,2437.2,3.7529458]
[1751227871913,3.86411,2437.3,2437.2,1.64118628]
[1751227872114,0.65633,2437.2,2437.1,1.64118628]
[1751227872315,2.06383,2437.2,2437.1,1.64118628]
[1751227872714,0.65636,2437.1,2437.0,1.64118628]
[1751227872915,4.16481952,2437.1,2437.0,1.64118628]
[1751227874422,0.65639,2437.0,2436.9,1.64118628]
[1751227874718,5.32659,2437.0,2436.9,1.64118628]
[1751227878425,5.32659,2437.0,2436.9,1.22965491]
[1751227879429,0.65641,2436.9,2436.8,1.22965491]
[1751227887432,2.76816952,2436.9,2436.8,1.22965491]
[1751227888034,0.65641,2436.9,2436.8,1.22965491]
[1751227889336,11.58355952,2437.0,2436.6,4.4469458]
[1751227889337,0.65647,2436.7,2436.6,4.03541443]
[1751227889537,3.86427,2436.7,2436.6,4.03541443]
[1751227890638,0.65647,2436.7,2436.6,4.03541443]
[1751227890834,3.86427,2436.7,2436.6,4.03541443]
[1751227896945,0.65647,2436.7,2436.6,4.03541443]
[1751227897248,3.86427,2436.7,2436.6,4.03541443]
[1751227898343,3.86427,2436.7,2436.6,2.80575952]
[1751227900051,0.65647,2436.7,2436.6,2.80575952]
[1751227900350,3.86427,2436.7,2436.6,2.80575952]
[1751227901251,3.86427,2436.7,2436.6,4.4469458]
[1751227902152,0.65647,2436.7,2436.6,4.4469458]
[1751227902348,3.86427,2436.7,2436.6,4.4469458]
[1751227904149,3.2078,2436.7,2436.6,5.1034458]
[1751227904454,0.7322,2436.8,2436.6,5.1034458]
[1751227904455,0.65643,2436.9,2436.7,0.65647]
[1751227904754,0.65643,2436.9,2436.8,4.7514887]